bitfinex/quotes_ETHUSD_20241207
["timestamp","ask_amount","ask_price","bid_price","bid_amount"]
[1733530371442,3.37933089,4010.1,4009.6,0.52373]
[1733530371643,1.04692687,4010.0,4009.9,0.5237]
[1733530371839,1.44164465,4010.0,4009.9,0.5237]
[1733530372474,2.73287139,4010.0,4009.9,0.5237]
[1733530372632,1.44164465,4010.0,4009.9,0.5237]
[1733530373033,2.73293337,4010.0,4009.9,0.5237]
[1733530373244,1.25553535,4010.0,4009.9,0.5237]
[1733530373448,2.54694293,4010.0,4009.9,0.5237]
[1733530373738,3.77412114,4010.0,4009.3,0.52377]
[1733530373937,3.77412114,4010.0,4009.0,0.8051]
[1733530373938,2.33828943,4009.9,4009.8,0.52371]
[1733530374141,2.87182875,4009.9,4009.8,0.52371]
[1733530374346,1.39435689,4009.9,4009.8,0.52371]
[1733530374682,2.68577979,4009.9,4009.8,0.52371]
[1733530375639,3.72695745,4009.9,4009.8,0.52371]
[1733530375846,2.68577979,4009.9,4009.8,0.52371]
[1733530376045,3.72695745,4009.9,4009.8,0.52371]
[1733530376667,2.68577979,4009.9,4009.8,1.32601]
[1733530376837,1.39435689,4009.9,4009.8,0.52371]
[1733530377244,0.86081757,4009.9,4009.8,0.52371]
[1733530377549,1.04117766,4010.1,4010.0,0.52369]
[1733530377754,3.19427201,4010.1,4010.0,0.52369]
[1733530377969,2.15309435,4010.1,4010.0,0.52369]
[1733530378546,1.04156148,4010.4,4010.0,0.52369]
[1733530378730,0.86100412,4010.3,4010.0,0.52369]
[1733530378966,1.04156148,4010.5,4010.4,0.52363]
[1733530379146,2.49319585,4010.5,4010.4,0.52363]
[1733530379474,1.20170853,4010.5,4010.4,0.52363]
[1733530379633,1.04156148,4010.7,4010.1,0.8023]
[1733530379968,2.15180031,4010.6,4010.5,0.52362]
[1733530380179,1.04156148,4010.8,4010.5,0.52362]
[1733530380401,1.04156148,4010.8,4010.1,0.8023]
[1733530380402,0.86067854,4010.7,4010.6,0.52361]
[1733530380693,1.14789143,4010.7,4010.6,0.52361]
[1733530380863,1.04156148,4010.9,4010.8,0.52358]
[1733530381062,2.1515236,4010.9,4010.8,0.52358]
[1733530381371,0.86060944,4010.9,4010.8,0.52358]
[1733530381982,0.1654889,4011.0,4010.6,0.52361]
[1733530381983,0.1654889,4011.0,4010.9,0.52357]
[1733530382293,1.02575528,4011.0,4010.9,0.52357]
[1733530382465,1.36149001,4011.0,4010.9,0.52357]
[1733530382660,1.36118439,4011.0,4010.9,0.52357]
[1733530383078,0.50122363,4011.0,4010.9,0.52357]
[1733530383251,0.1654889,4011.0,4010.9,0.52357]
[1733530384118,0.1654889,4011.0,4010.9,1.27427]
[1733530384283,8.9e-06,4011.0,4010.9,1.27427]
[1733530385862,8.9e-06,4011.0,4010.9,0.52357]
[1733530387272,8.9e-06,4011.0,4010.9,1.32447]
[1733530387561,8.9e-06,4011.0,4010.9,1.809278]
[1733530387757,8.9e-06,4011.0,4010.9,1.32447]
[1733530388166,8.9e-06,4011.0,4010.9,4.32447]
[1733530388859,8.9e-06,4011.0,4010.9,1.32447]
[1733530392259,8.9e-06,4011.0,4010.9,0.52357]
[1733530394909,8.9e-06,4011.0,4010.7,0.52359]
[1733530395430,0.5500089,4011.0,4010.7,0.52359]
[1733530395631,0.89042462,4011.0,4010.0,0.52369]
[1733530395789,8.9e-06,4011.0,4010.0,0.52369]
[1733530395983,8.9e-06,4011.0,4010.9,0.52357]
[1733530398089,8.9e-06,4011.0,4010.7,0.52359]
[1733530398431,1.00424871,4010.9,4010.3,0.52364]
[1733530398729,0.18574871,4010.8,4009.9,0.5237]
[1733530398932,0.18574871,4010.7,4009.9,0.5237]
[1733530399226,0.8185,4010.9,4009.9,0.5237]
[1733530399227,0.18577353,4010.6,4009.9,0.5237]
[1733530399400,0.8185,4010.9,4010.4,0.52363]
[1733530399724,0.18581989,4010.8,4010.4,0.52363]
[1733530399934,0.18581989,4010.7,4010.4,0.52363]
[1733530400093,0.18581989,4010.6,4010.4,0.52363]
[1733530400295,0.13004277,4010.8,4010.4,0.52363]
[1733530400512,0.18588479,4010.7,4009.9,0.5237]
[1733530400684,0.13004277,4010.8,4010.3,0.52364]
[1733530400685,0.18588479,4010.6,4010.3,0.52364]
[1733530400885,0.18588479,4010.5,4010.3,0.52364]
[1733530401085,0.14305265,4010.6,4010.3,0.52364]
[1733530401329,0.18589539,4010.5,4010.3,0.52364]
[1733530401536,0.18589539,4010.4,4010.3,0.52364]
[1733530401697,0.14305265,4010.6,4010.3,0.52364]
[1733530402033,0.18590164,4010.5,4009.6,3.0]
[1733530402201,0.8185,4010.9,4010.8,0.52358]
[1733530402202,1.11459892,4010.9,4010.8,0.52358]
[1733530402400,1.30052525,4010.9,4010.8,0.52358]
[1733530402602,0.18592633,4010.9,4010.8,0.52358]
[1733530403229,8.9e-06,4011.0,4010.9,0.52357]
[1733530403384,8.9e-06,4011.0,4010.9,1.32027]
[1733530411113,8.9e-06,4011.0,4010.9,1.504655]
[1733530413541,8.9e-06,4011.0,4010.9,0.52357]
[1733530415249,0.8007089,4011.0,4010.6,0.5236]
[1733530415454,0.8007089,4011.0,4010.3,0.52364]
[1733530415743,1.04697957,4010.9,4009.5,1.018004]
[1733530415903,0.1862014,4010.8,4010.6,0.5236]
[1733530416103,0.18620626,4010.7,4010.6,0.5236]
[1733530416299,1.04710615,4010.7,4009.8,0.52371]
[1733530416556,1.04712073,4010.6,4010.1,0.52366]
[1733530416706,1.04712073,4010.6,4009.5,1.14413892]
[1733530416707,2.33883061,4010.5,4010.2,0.52366]
[1733530416901,0.6803663,4010.4,4009.8,0.52371]
[1733530417136,1.04156148,4010.5,4010.3,0.52365]
[1733530417301,2.33917559,4010.4,4010.3,0.52365]
[1733530417500,2.33930757,4010.4,4010.3,0.52365]
[1733530417700,1.04737915,4010.4,4010.3,0.52365]
[1733530418274,1.04156148,4010.6,4010.5,0.52362]
[1733530418445,3.00958018,4010.6,4010.5,0.52362]
[1733530418656,3.00954137,4010.6,4010.5,0.52362]
[1733530418885,1.71759376,4010.6,4010.5,0.52362]
[1733530419187,3.00958903,4010.6,4010.5,0.52362]
[1733530419532,2.33939286,4010.6,4010.5,0.52362]
[1733530419744,1.04156148,4010.8,4010.5,0.52362]
[1733530420075,1.04156148,4010.9,4010.8,0.52358]
[1733530420277,8.9e-06,4011.0,4010.9,0.52357]
[1733530420481,2.33964639,4011.0,4010.9,0.52357]
[1733530420777,2.86367806,4011.0,4010.9,0.52357]
[1733530420933,2.94149904,4011.0,4010.9,0.52357]
[1733530421458,3.98345691,4011.0,4010.9,0.52357]
[1733530421659,2.94149904,4011.0,4010.9,0.52357]
[1733530422435,2.94155465,4011.0,4010.9,0.52357]
[1733530422862,2.94155485,4011.0,4010.9,0.52357]
[1733530423329,4.50276314,4011.0,4010.9,0.52357]
[1733530423773,2.86373362,4011.0,4010.9,0.52357]
[1733530424284,2.86566695,4011.0,4010.9,0.52357]
[1733530424673,4.27687524,4011.0,4010.9,0.52357]
[1733530424977,2.71566695,4011.0,4010.9,0.52357]
[1733530425184,2.34162638,4011.0,4010.9,0.52357]
[1733530425476,1.0428066,4011.5,4011.2,0.52353]
[1733530425713,0.86212396,4011.4,4011.2,0.52353]
[1733530426003,1.0428066,4011.5,4011.4,0.5235]
[1733530426157,3.1981532,4011.5,4011.4,0.5235]
[1733530426364,2.1553466,4011.5,4011.4,0.5235]
[1733530426566,1.0428066,4011.7,4011.3,0.7582]
[1733530426768,0.86206111,4011.6,4011.5,0.52349]
[1733530427260,1.0428066,4011.8,4011.5,0.52349]
[1733530427491,1.72405919,4012.1,4011.5,0.52349]
[1733530427492,0.86192421,4011.7,4011.6,0.52348]
[1733530428008,1.0428066,4011.9,4011.8,0.52345]
[1733530428173,3.19760423,4011.9,4011.8,0.52345]
[1733530428709,1.0428066,4012.3,4012.2,0.5234]
[1733530428876,2.15423847,4012.3,4012.2,0.5234]
[1733530429203,2.12358336,4012.5,4012.4,0.52337]
[1733530429373,1.94279103,4012.5,4012.4,0.52337]
[1733530429577,3.23477149,4012.5,4012.4,0.52337]
[1733530429871,4.27688231,4012.5,4012.4,0.52337]
[1733530430085,5.11466858,4012.5,4012.4,0.52337]
[1733530430288,5.29997148,4012.5,4012.4,0.52337]
[1733530430605,4.25848978,4012.5,4012.4,0.52337]
[1733530430994,5.29999818,4012.5,4011.7,0.7782]
[1733530431162,3.38072419,4012.4,4012.3,0.52339]
[1733530431366,1.91925881,4012.5,4011.7,0.7782]
[1733530431570,1.08147254,4012.5,4012.4,0.52337]
[1733530431805,1.94238112,4012.5,4012.4,0.52337]
[1733530432203,3.23373057,4012.5,4012.4,0.52337]
[1733530432403,0.86090858,4012.5,4012.4,0.52337]
[1733530432789,1.04149322,4012.8,4012.7,0.52333]
[1733530432971,0.86067793,4012.8,4012.7,0.52333]
[1733530433177,1.04149322,4013.2,4013.0,0.52329]
[1733530433378,1.38374094,4013.1,4013.0,0.52329]
[1733530433614,0.33781015,4013.1,4013.0,0.52329]
[1733530433769,2.51748907,4013.3,4013.2,0.52327]
[1733530433970,2.51748907,4013.3,4013.1,0.7545]
[1733530433971,1.2901769,4013.4,4013.3,0.52326]
[1733530434170,2.15028267,4013.4,4013.3,0.52326]
[1733530434415,0.86010577,4013.4,4013.3,0.52326]
[1733530434574,0.86010577,4013.4,4012.8,1.27781]
[1733530434783,1.04992774,4013.3,4013.1,0.52328]
[1733530435063,0.85981529,4013.2,4013.1,0.52328]
[1733530435269,0.3758339,4013.3,4012.8,1.27781]
[1733530435512,0.1901599,4013.3,4013.2,0.52327]
[1733530435714,0.7754,4013.2,4012.3,0.7545]
[1733530435882,0.9610825,4013.2,4012.7,0.52333]
[1733530436083,1.40126569,4013.1,4012.7,0.52333]
[1733530436299,0.35598172,4013.1,4012.7,0.52333]
[1733530437809,0.85924287,4013.0,4012.3,0.7545]
[1733530437982,1.5831051,4013.1,4012.3,0.7545]
[1733530438183,0.55,4012.9,4012.0,0.52342]
[1733530438405,0.42811805,4012.8,4011.7,0.7545]
[1733530438768,0.42811805,4012.8,4011.8,0.52345]
[1733530438769,0.7754,4012.7,4011.8,0.52345]
[1733530439168,1.40917411,4012.6,4011.8,0.52345]
[1733530439372,0.73563016,4012.6,4011.5,0.52348]
[1733530439622,1.04478957,4012.5,4011.5,0.52348]
[1733530439780,0.36042888,4012.4,4011.4,0.5235]
[1733530440118,0.36042888,4012.4,4011.3,0.52351]
[1733530440276,0.36042888,4012.4,4011.7,0.52346]
[1733530440890,0.7754,4012.3,4011.2,0.7545]
[1733530441202,0.55,4012.2,4011.3,0.52351]
[1733530441404,1.15054769,4012.1,4010.8,1.53798172]
[1733530441605,0.85925246,4012.0,4011.3,0.52351]
[1733530441935,0.29129523,4012.1,4011.3,0.52351]
[1733530442153,0.29129523,4012.1,4010.8,3.34027046]
[1733530442154,0.85930043,4012.0,4010.8,3.34027046]
[1733530442297,0.7754,4012.3,4010.9,3.52357]
[1733530442492,0.7754,4012.3,4011.8,0.52345]
[1733530443153,0.7754,4012.3,4011.1,0.7545]
[1733530443302,0.36042888,4012.4,4011.1,0.7545]
[1733530443641,0.54599478,4012.4,4011.9,0.52343]
[1733530443792,0.36042888,4012.4,4011.2,0.52353]
[1733530443999,0.36042888,4012.4,4011.1,0.7545]
[1733530444000,3.10574232,4012.6,4011.1,1.27803]
[1733530444307,4.00288722,4012.5,4011.1,0.7545]
[1733530444496,0.55,4012.3,4011.1,1.27803]
[1733530444696,0.18554173,4012.3,4011.8,0.52344]
[1733530444936,0.18554173,4012.5,4011.8,0.52344]
[1733530445141,0.55,4012.4,4011.8,0.52344]
[1733530445336,0.15109417,4012.4,4011.3,0.52351]
[1733530445545,1.40935723,4012.3,4011.7,0.52346]
[1733530445701,0.7754,4012.0,4011.4,0.5235]
[1733530445898,0.7754,4012.0,4011.0,0.52355]
[1733530445899,0.55,4011.9,4011.2,0.52353]
[1733530446099,0.55,4011.7,4010.8,0.25991172]
[1733530446414,0.55,4011.7,4011.2,0.52353]
[1733530446593,0.55,4011.7,4011.2,3.52353]
[1733530446793,0.55,4011.7,4011.2,0.52353]
[1733530447243,0.55,4011.7,4011.2,3.52353]
[1733530447739,0.55,4011.7,4011.1,0.52353]
[1733530448243,0.55,4011.7,4011.3,0.52351]
[1733530448442,0.55,4011.7,4010.9,0.52356]
[1733530448599,0.55,4011.7,4011.3,0.52351]
[1733530449533,0.55,4011.7,4010.8,0.25991172]
[1733530449713,0.55,4011.7,4011.4,0.5235]
[1733530449916,0.21051189,4011.6,4011.4,0.5235]
[1733530450331,0.55,4011.7,4011.4,0.5235]
[1733530451002,0.55,4011.7,4011.5,0.52349]
[1733530451597,0.55,4011.7,4011.6,0.52348]
[1733530452926,0.55,4011.9,4011.6,0.52348]
[1733530453845,0.55,4011.9,4011.3,0.5235]
[1733530454003,0.55,4011.7,4011.4,0.52349]
[1733530454203,0.55,4011.7,4011.5,0.52348]
[1733530455414,0.55,4011.7,4011.3,0.52352]
[1733530455839,0.18608326,4011.6,4011.1,0.52354]
[1733530456038,0.18608326,4011.5,4011.1,0.52354]
[1733530456371,0.18608326,4011.4,4011.2,0.52353]
[1733530456660,0.55,4011.5,4011.2,0.52353]
[1733530457363,0.13254,4011.8,4010.8,0.25991172]
[1733530457364,0.55,4011.7,4011.4,0.5235]
[1733530457565,0.55,4011.5,4011.4,0.5235]
[1733530457869,0.73604406,4011.5,4011.4,0.5235]
[1733530458079,0.73604406,4011.5,4010.9,0.52357]
[1733530458217,0.55,4011.5,4011.3,0.5235]
[1733530458577,0.55,4011.5,4010.9,0.52357]
[1733530458869,1.91802137,4011.6,4011.4,0.5235]
[1733530459073,1.07478387,4011.5,4011.4,0.5235]
[1733530459225,1.5962178,4011.5,4011.4,0.5235]
[1733530459422,1.59616743,4011.5,4011.4,0.5235]
[1733530459617,1.59615669,4011.5,4011.4,0.5235]
[1733530460019,1.67396918,4011.5,4011.4,0.5235]
[1733530460251,0.55,4011.7,4011.0,0.52355]
[1733530460577,0.55,4011.6,4011.5,0.34899]
[1733530460862,0.73602011,4011.6,4011.5,0.34899]
[1733530462065,0.55,4011.5,4010.8,0.25991172]
[1733530462361,0.55,4011.7,4011.2,3.0]
[1733530462566,0.73602962,4011.6,4011.5,0.34899]
[1733530463320,1.59644914,4011.6,4011.2,3.34901]
[1733530463521,1.59647687,4011.5,4011.2,0.34901]
[1733530463726,1.04650378,4011.4,4011.2,0.34901]
[1733530463968,0.1860846,4011.3,4011.2,0.34901]
[1733530464178,0.55,4011.5,4011.3,0.34901]
[1733530464322,0.18607877,4011.4,4011.3,0.34901]
[1733530464651,0.55,4011.6,4011.3,0.34901]
[1733530464856,2.56853609,4011.5,4011.2,3.0]
[1733530465023,0.18606956,4011.4,4011.2,3.0]
[1733530465229,0.23090317,4011.5,4011.2,3.34902]
[1733530465665,0.18614616,4011.4,4011.2,3.34902]
[1733530465881,0.23090317,4011.5,4011.2,3.34902]
[1733530466028,0.18614828,4011.4,4011.2,3.34902]
[1733530466224,0.18621846,4011.3,4011.2,3.34902]
[1733530466461,0.18622738,4011.3,4011.2,3.0]
[1733530466826,0.18622738,4011.3,4011.1,0.34903]
[1733530467088,2.33838668,4011.2,4010.9,0.34904]
[1733530467339,2.41631559,4011.1,4010.9,0.34904]
[1733530467486,0.86086372,4011.0,4010.9,0.34904]
[1733530467689,1.12491146,4011.0,4010.9,0.34904]
[1733530468102,0.26404774,4011.0,4010.9,0.34904]
[1733530469306,0.18622738,4011.0,4010.9,1.12104]
[1733530469535,1.03928312,4011.5,4011.2,3.34902]
[1733530469834,0.26419418,4011.4,4010.9,0.919011]
[1733530470041,0.55,4011.6,4011.0,0.34904]
[1733530470242,0.26417692,4011.5,4011.0,0.34904]
[1733530470539,1.03928312,4011.7,4011.0,0.34904]
[1733530470540,0.55,4011.7,4011.5,0.34899]
[1733530470752,1.67510929,4011.6,4011.5,0.34899]
[1733530471814,3.26472754,4011.6,4011.0,0.34904]
[1733530472014,1.1251095,4011.5,4011.2,0.34901]
[1733530472339,0.26418856,4011.4,4011.3,0.34901]
[1733530473746,1.03928312,4011.6,4011.3,0.683911]
[1733530474058,1.55892468,4012.6,4012.5,0.3489]
[1733530474341,1.55892468,4012.7,4012.6,0.3489]
[1733530474560,1.73749602,4012.7,4012.6,0.3489]
[1733530474757,1.73749602,4012.7,4011.8,1.17577]
[1733530474905,2.85235986,4012.6,4011.8,1.17577]
[1733530475099,1.29095693,4012.5,4011.8,1.17577]
[1733530475303,1.29095693,4012.4,4011.8,1.17577]
[1733530475552,1.29095693,4012.3,4011.8,1.17577]
[1733530475860,1.56140293,4012.5,4012.2,0.34893]
[1733530476033,1.29121095,4012.4,4012.2,0.34893]
[1733530476244,1.29121095,4012.3,4012.2,0.34893]
[1733530478748,1.291392,4012.3,4012.2,0.34893]
[1733530479118,0.58078976,4012.5,4012.3,0.34892]
[1733530479651,0.55,4012.6,4012.4,0.34891]
[1733530479821,1.84161148,4012.5,4012.4,0.34891]
[1733530480779,1.3779,4012.4,4010.9,0.8268]
[1733530480962,0.55,4012.2,4010.9,0.8268]
[1733530481179,0.55,4012.2,4011.8,0.34896]
[1733530481180,2.85301441,4012.1,4011.8,0.34896]
[1733530481381,2.01190848,4012.0,4011.8,0.34896]
[1733530481521,1.29257907,4011.9,4011.1,0.34903]
[1733530481726,2.11140293,4012.2,4012.0,0.34895]
[1733530481967,1.84255811,4012.1,4012.0,0.34895]
[1733530483089,1.29255811,4012.1,4012.0,0.34895]
[1733530483292,1.29255811,4012.1,4012.0,1.11525]
[1733530483478,1.56140293,4012.4,4012.0,1.11525]
[1733530483676,1.56140293,4012.4,4012.3,0.34892]
[1733530483983,2.27405533,4012.5,4012.4,0.34891]
[1733530484181,2.85679474,4012.5,4012.4,0.34891]
[1733530484401,2.33554671,4012.5,4012.4,0.34891]
[1733530484794,1.29303436,4012.5,4012.4,0.34891]
[1733530485214,1.29303436,4012.5,4012.4,3.34891]
[1733530485378,1.29303436,4012.5,4012.4,0.34891]
[1733530485712,2.33554671,4012.5,4012.4,0.34891]
[1733530486437,1.29303436,4012.5,4012.4,0.34891]
[1733530487308,1.04251235,4012.6,4012.5,0.3489]
[1733530487512,2.33501686,4012.6,4012.5,0.3489]
[1733530487837,1.29250451,4012.6,4012.5,0.3489]
[1733530488209,1.04251235,4012.7,4012.6,0.3489]
[1733530488443,2.33478662,4012.7,4012.6,0.3489]
[1733530488609,1.04251235,4012.9,4012.8,0.34888]
[1733530488808,2.3346883,4012.9,4012.8,0.34888]
[1733530489578,2.52061315,4012.9,4012.8,0.34888]
[1733530489847,0.55,4012.8,4012.4,3.0]
[1733530490043,3.59069594,4012.7,4012.6,0.34889]
[1733530490208,2.0281008,4012.7,4012.6,0.34889]
[1733530490397,3.06971806,4012.7,4012.6,0.34889]
[1733530490897,2.88379321,4012.7,4012.6,0.34889]
[1733530492141,3.06965201,4012.7,4012.6,0.34889]
[1733530492441,1.29217595,4012.7,4012.6,0.34889]
[1733530492611,1.29217595,4012.7,4012.6,1.13309]
[1733530492812,1.04155965,4013.0,4012.6,1.281291]
[1733530493013,1.04155965,4013.1,4013.0,0.34886]
[1733530493204,2.51905618,4013.1,4013.0,0.34886]
[1733530493407,2.33291625,4013.1,4013.0,0.34886]
[1733530493939,2.15227135,4013.1,4013.0,0.34886]
[1733530494139,0.86091475,4013.1,4013.0,0.34886]
[1733530494451,2.12273316,4013.4,4013.0,0.34886]
[1733530494741,2.1517225,4013.3,4013.2,0.34884]
[1733530494909,3.19328215,4013.3,4013.2,0.34884]
[1733530495112,4.77581604,4013.3,4013.2,0.34884]
[1733530495315,0.55,4013.2,4013.0,0.34886]
[1733530495520,3.92834048,4013.1,4013.0,0.34886]
[1733530495828,3.92834048,4013.1,4012.5,0.3489]
[1733530495829,2.88755131,4013.1,4012.8,0.34888]
[1733530496009,3.19255312,4013.0,4012.8,0.34888]
[1733530496343,2.1517225,4012.9,4012.8,0.34888]
[1733530497046,3.37839967,4012.9,4012.8,0.34888]
[1733530497780,3.37839967,4012.9,4012.6,0.34889]
[1733530497949,0.860689,4012.8,4012.6,0.34889]
[1733530498147,1.04083062,4012.9,4012.6,0.34889]
[1733530498474,1.04643132,4012.8,4012.6,0.34889]
[1733530498790,2.33723839,4012.7,4012.1,0.34894]
[1733530498935,0.86051472,4012.6,4012.0,0.34894]
[1733530499137,0.86052695,4012.5,4012.0,0.34894]
[1733530499474,1.93161953,4012.6,4012.3,0.34892]
[1733530499651,3.78264468,4012.5,4012.3,0.34892]
[1733530499836,2.33743729,4012.4,4012.3,1.13312]
[1733530500041,1.04083062,4012.6,4012.3,0.34891]
[1733530500287,1.04657145,4012.5,4012.0,0.7842]
[1733530500438,1.84069494,4012.6,4012.4,0.34891]
[1733530500634,0.18606974,4012.5,4012.0,0.7842]
[1733530500841,0.55,4012.6,4012.2,0.34893]
[1733530501148,2.3373575,4012.5,4012.0,0.34894]
[1733530501482,2.41513007,4012.4,4012.1,0.34894]
[1733530501690,1.04657864,4012.3,4012.1,0.34894]
[1733530501834,0.18607165,4012.2,4011.7,0.7842]
[1733530502033,1.36864878,4012.4,4011.7,0.7842]
[1733530502240,0.18613302,4012.3,4011.7,0.7842]
[1733530502447,1.85383062,4012.5,4011.9,3.0]
[1733530502448,1.29084254,4012.4,4011.9,3.0]
[1733530502636,1.04677858,4012.3,4011.7,0.7842]
[1733530502867,1.29090214,4012.4,4011.9,3.0]
[1733530503049,0.18617771,4012.3,4012.2,0.34893]
[1733530503255,0.26397262,4012.3,4012.2,0.34893]
[1733530503670,0.26397262,4012.3,4011.9,0.34896]
[1733530503875,0.26397262,4012.3,4011.7,0.7842]
[1733530503876,0.18617771,4012.2,4012.0,0.34895]
[1733530504144,0.18617771,4012.1,4012.0,0.34895]
[1733530504753,0.813,4012.0,4011.6,0.34898]
[1733530505197,0.18625151,4011.9,4011.6,0.34898]
[1733530505402,0.813,4012.0,4011.4,0.349]
[1733530505692,0.813,4012.0,4010.5,3.47247334]
[1733530505693,1.12490967,4011.9,4010.9,0.7842]
[1733530505921,0.18625261,4011.8,4011.7,0.34897]
[1733530506100,1.29125711,4012.1,4011.5,0.7842]
[1733530506306,1.04083062,4012.5,4012.0,0.34894]
[1733530506466,1.3073656,4012.4,4012.0,0.34894]
[1733530506666,0.26034258,4012.4,4012.0,0.34894]
[1733530507082,0.18622593,4012.3,4012.0,0.34894]
[1733530507299,2.33206341,4012.5,4011.6,3.34898]
[1733530507471,1.04083062,4012.6,4012.1,3.34894]
[1733530507669,1.12487821,4012.5,4012.1,3.34894]
[1733530507875,1.04083062,4012.6,4012.1,0.34894]
[1733530508075,0.60567056,4012.5,4012.1,3.34894]
[1733530508277,0.1862333,4012.4,4012.1,3.34894]
[1733530508477,0.34164258,4012.5,4012.1,0.34894]
[1733530508713,0.34164258,4012.5,4012.1,3.34894]
[1733530510213,0.34164258,4012.5,4012.1,0.34894]
[1733530510420,1.04083062,4012.7,4011.8,0.7569]
[1733530510718,1.0471979,4012.6,4012.4,0.34891]
[1733530511019,1.04083062,4012.7,4012.1,3.0]
[1733530511170,0.12447197,4013.0,4012.1,3.0]
[1733530511171,1.0472633,4012.6,4012.2,0.7569]
[1733530511490,1.04083062,4012.8,4012.6,0.34889]
[1733530511686,1.12507604,4012.7,4012.6,0.3489]
[1733530511995,1.0472866,4012.7,4012.6,0.3489]
[1733530512288,1.04728716,4012.7,4012.6,0.3489]
[1733530512442,2.33893503,4012.7,4012.6,0.3489]
[1733530512790,2.33893503,4012.7,4012.3,3.0]
[1733530512791,1.04728716,4012.7,4012.4,0.34891]
[1733530512989,2.3389288,4012.6,4012.4,0.34891]
[1733530513287,2.33932112,4012.5,4012.3,3.0]
[1733530513454,1.04083062,4012.6,4012.3,3.34892]
[1733530513653,1.04770182,4012.5,4012.3,3.34892]
[1733530513859,0.12446895,4012.9,4012.3,0.34892]
[1733530513860,1.04083062,4012.7,4012.3,0.34892]
[1733530514044,3.38062952,4012.6,4012.3,0.34892]
[1733530514239,2.3397989,4012.5,4012.3,0.34892]
[1733530514459,1.69363555,4012.7,4012.4,0.34891]
[1733530514793,2.34034581,4012.6,4012.4,0.34891]
[1733530514993,0.86161275,4012.5,4012.4,0.34891]
[1733530515149,4.4324824,4012.5,4012.1,0.34894]
[1733530515349,2.1545113,4012.4,4012.1,0.34894]
[1733530515544,2.09165545,4012.5,4012.1,0.34894]
[1733530515545,0.86161275,4012.3,4012.1,0.34894]
[1733530515749,2.09165545,4012.5,4012.1,3.34894]
[1733530515961,0.8619449,4012.4,4012.1,0.34894]
[1733530516191,2.09165545,4012.5,4012.1,0.34894]
[1733530516375,2.79310883,4012.4,4011.5,0.7794]
[1733530516558,2.79310883,4012.4,4011.6,0.34897]
[1733530516559,1.04083062,4012.2,4011.6,0.34897]
[1733530516762,3.3823199,4012.1,4011.6,0.34897]
[1733530516944,3.38269956,4012.0,4011.6,0.34897]
[1733530517144,2.15554488,4011.9,4011.6,0.34897]
[1733530517358,0.86221795,4011.8,4011.6,0.34897]
[1733530517595,1.04083062,4012.0,4011.6,0.34897]
[1733530517751,2.15586862,4011.9,4011.6,0.34897]
[1733530517958,1.04083062,4012.0,4011.6,0.34897]
[1733530518146,3.19670539,4011.9,4011.6,0.34897]
[1733530518346,2.15587477,4011.8,4011.6,0.34897]
[1733530518599,2.1561603,4011.7,4010.9,0.7794]
[1733530518886,3.19699092,4011.6,4011.1,0.34902]
[1733530519205,3.19699092,4011.5,4010.8,0.34905]
[1733530519364,1.04083062,4011.3,4010.9,0.34904]
[1733530519738,1.04083062,4011.5,4010.7,0.34906]
[1733530519845,1.04083062,4011.3,4011.0,0.34903]
[1733530520048,2.15667288,4011.2,4011.0,0.34903]
[1733530520250,1.04083062,4011.3,4011.2,3.0]
[1733530520498,3.19755855,4011.3,4011.2,3.0]
[1733530521305,3.19755855,4011.3,4010.9,0.34904]
[1733530521448,2.15672793,4011.2,4010.9,0.34904]
[1733530521649,1.04083062,4011.3,4010.9,0.34904]
[1733530522000,1.04083062,4011.1,4010.6,0.34906]
[1733530522294,3.1966324,4011.0,4010.8,0.34905]
[1733530522597,1.04083062,4011.2,4011.0,0.34904]
[1733530522797,0.7953,4011.5,4010.2,0.3491]
[1733530522798,1.04083062,4011.5,4011.4,0.349]
[1733530523003,1.04083062,4011.7,4011.4,0.496743]
[1733530523152,1.04083062,4011.7,4011.6,0.34898]
[1733530523355,1.04083062,4011.7,4011.1,1.12842]
[1733530523356,2.15488882,4011.7,4011.4,0.349]
[1733530523551,0.86195553,4011.6,4011.5,0.34899]
[1733530523864,2.15486102,4011.6,4011.5,0.34899]
[1733530524397,2.1547594,4011.6,4011.5,0.34899]
[1733530524778,0.86190376,4011.6,4011.5,0.34899]
[1733530525410,1.04083062,4011.7,4011.5,0.34899]
[1733530525620,0.86181786,4011.6,4011.5,0.34899]
[1733530526213,1.04083062,4011.9,4011.5,0.34899]
[1733530526378,1.04083062,4011.9,4011.2,3.0]
[1733530526379,2.15426747,4011.8,4011.7,0.34897]
[1733530527324,2.15424985,4011.8,4011.7,1.12987]
[1733530527640,1.04083062,4012.0,4011.9,0.34896]
[1733530527848,3.19502152,4012.0,4011.9,0.34896]
[1733530528141,3.38114653,4012.0,4011.9,0.34896]
[1733530528305,2.1541909,4012.0,4011.9,0.34896]
[1733530528511,3.381161,4012.0,4011.9,0.34896]
[1733530529097,0.86167036,4012.0,4011.9,0.34896]
[1733530529506,0.86165063,4012.0,4011.7,0.7809]
[1733530529720,1.04083062,4012.1,4011.9,0.34896]
[1733530529949,0.86165162,4012.0,4011.9,0.34896]
[1733530530316,0.86161299,4012.0,4011.9,0.34896]
[1733530530951,2.15412674,4012.0,4011.9,0.34896]
[1733530531104,0.86161299,4012.0,4011.9,0.34896]
[1733530531500,2.15411201,4012.0,4011.9,0.34896]
[1733530531901,2.3402686,4012.0,4011.9,0.34896]
[1733530532340,2.15411201,4012.0,4011.9,0.34896]
[1733530533745,2.1541632,4012.0,4011.9,0.34896]
[1733530534852,2.1541632,4012.0,4011.7,0.34897]
[1733530535049,0.31949938,4011.9,4010.4,2.99192098]
[1733530535253,1.04083062,4012.1,4012.0,0.34895]
[1733530535558,3.3812963,4012.1,4012.0,0.34895]
[1733530535905,2.34046568,4012.1,4012.0,0.34895]
[1733530536111,1.0478825,4012.1,4012.0,0.34895]
[1733530536355,2.73533507,4012.1,4012.0,0.34895]
[1733530536558,0.3949166,4012.1,4012.0,0.34895]
[1733530536845,1.04083062,4012.4,4012.2,0.34893]
[1733530537150,2.37909514,4012.6,4012.2,0.34893]